bitfinex-derivatives/quotes_BTCF0:USTF0_20250527
["timestamp","ask_amount","ask_price","bid_price","bid_amount"]
[1748314493609,0.105,108260.0,108250.0,1.28564985]
[1748314493812,0.2896727,108260.0,108250.0,0.89185808]
[1748314494006,0.3403727,108260.0,108250.0,0.89173808]
[1748314494213,0.3403727,108260.0,108250.0,0.89185808]
[1748314494707,0.46866,108260.0,108250.0,1.56271074]
[1748314495111,0.52276,108260.0,108250.0,1.56271074]
[1748314496020,0.0529,108260.0,108250.0,1.56271074]
[1748314496316,0.46866,108260.0,108250.0,1.56271074]
[1748314498418,0.52126,108260.0,108250.0,1.56271074]
[1748314498612,0.1055,108260.0,108250.0,1.56271074]
[1748314498813,0.52122,108260.0,108250.0,1.14515074]
[1748314499011,0.52122,108260.0,108250.0,1.56271074]
[1748314499213,0.52122,108260.0,108250.0,1.44265808]
[1748314499408,0.52122,108260.0,108250.0,1.56271074]
[1748314500409,0.001,108260.0,108250.0,1.56271074]
[1748314500716,0.41584,108280.0,108270.0,0.1846556]
[1748314500908,0.86044,108280.0,108270.0,1.07251649]
[1748314501108,0.86044,108280.0,108270.0,1.23321649]
[1748314501303,0.05442,108280.0,108270.0,1.59401649]
[1748314501513,0.00012,108280.0,108270.0,1.59401649]
[1748314501716,0.04214482,108280.0,108270.0,1.59401649]
[1748314502314,0.04314482,108280.0,108270.0,1.59401649]
[1748314502920,0.00112,108280.0,108270.0,1.47396383]
[1748314503111,0.05472,108280.0,108270.0,1.47692383]
[1748314503312,0.10932,108280.0,108270.0,1.47692383]
[1748314503808,0.10932,108280.0,108270.0,1.48041561]
[1748314504324,0.10932,108280.0,108270.0,1.18294827]
[1748314504624,0.10932,108280.0,108270.0,1.60046827]
[1748314505321,0.10932,108280.0,108270.0,1.60486009]
[1748314505723,0.10932,108280.0,108270.0,0.83728743]
[1748314505922,0.525,108280.0,108270.0,1.68482009]
[1748314506121,0.7096386,108280.0,108270.0,1.56476743]
[1748314506520,0.7096386,108280.0,108270.0,1.56464743]
[1748314506721,0.7096386,108280.0,108270.0,1.56476743]
[1748314507619,0.7096386,108280.0,108270.0,1.14728743]
[1748314507821,0.7096386,108280.0,108270.0,1.25476743]
[1748314508016,0.7096386,108280.0,108270.0,0.84196743]
[1748314508226,1.54049126,108280.0,108270.0,0.13113183]
[1748314508521,1.54049126,108280.0,108270.0,0.13101183]
[1748314508825,1.58247252,108280.0,108270.0,0.13113183]
[1748314509324,1.58247252,108280.0,108270.0,0.31578743]
[1748314512920,1.25914853,108280.0,108270.0,0.13101183]
[1748314513121,1.67482853,108280.0,108270.0,0.13113183]
[1748314513326,1.73195759,108280.0,108270.0,0.13113183]
[1748314513519,1.73195759,108280.0,108270.0,0.13101183]
[1748314513717,1.98195759,108280.0,108270.0,0.13113183]
[1748314514629,2.01102052,108280.0,108270.0,0.13113183]
[1748314516029,2.03893462,108280.0,108270.0,0.13113183]
[1748314517128,1.50914853,108280.0,108270.0,0.31578743]
[1748314517331,1.92482853,108280.0,108270.0,0.13113183]
[1748314518729,2.06823148,108280.0,108270.0,0.13113183]
[1748314520131,2.06823148,108280.0,108270.0,0.12813183]
[1748314520331,2.06723148,108280.0,108270.0,0.12613183]
[1748314521136,1.81723148,108280.0,108270.0,0.12613183]
[1748314522035,0.1846556,108270.0,108260.0,1e-08]
[1748314522228,0.1846727,108260.0,108250.0,4e-08]
[1748314522429,1.14302536,108260.0,108250.0,4e-08]
[1748314522630,0.1847069,108240.0,108230.0,0.0536]
[1748314522831,2.19736376,108240.0,108230.0,0.1536]
[1748314523133,2.30486376,108240.0,108230.0,0.15372]
[1748314524137,2.30686376,108240.0,108230.0,0.15472]
[1748314524331,2.34884502,108240.0,108230.0,0.15472]
[1748314524533,2.34884502,108240.0,108230.0,0.10112]
[1748314525034,2.35084502,108240.0,108230.0,0.101]
[1748314525335,2.35084502,108240.0,108230.0,0.10112]
[1748314526034,2.35697968,108240.0,108230.0,0.10112]
[1748314526234,2.35697968,108240.0,108230.0,0.15552]
[1748314527339,2.35697968,108240.0,108230.0,0.3402439]
[1748314528026,2.35713968,108240.0,108230.0,0.3402439]
[1748314528227,2.35713968,108240.0,108230.0,0.15552]
[1748314528627,2.44953168,108240.0,108230.0,0.10112]
[1748314528837,2.56958434,108240.0,108230.0,0.10112]
[1748314529136,0.184741,108220.0,108210.0,0.24346586]
[1748314529331,0.184741,108220.0,108210.0,0.35346586]
[1748314529332,1.86323366,108220.0,108210.0,0.35346586]
[1748314529533,1.97043366,108220.0,108210.0,0.35346816]
[1748314529734,1.97043366,108220.0,108210.0,0.35358816]
[1748314530039,1.97043366,108220.0,108210.0,0.35346816]
[1748314530339,1.97143366,108220.0,108210.0,0.35558816]
[1748314530532,1.97143366,108220.0,108210.0,0.17083016]
[1748314530734,1.97143366,108220.0,108210.0,0.3521781]
[1748314531644,1.97143366,108220.0,108210.0,0.3541781]
[1748314531843,0.916541,108220.0,108210.0,0.3541781]
[1748314532143,5e-08,108220.0,108210.0,1.42743876]
[1748314532328,5e-08,108220.0,108210.0,1.48193876]
[1748314532531,5e-08,108220.0,108210.0,1.48824543]
[1748314533442,0.00013879,108230.0,108220.0,0.184741]
[1748314533642,0.00013879,108230.0,108220.0,1.30989366]
[1748314534046,0.00013879,108230.0,108220.0,1.189841]
[1748314534234,0.00013879,108230.0,108220.0,1.30989366]
[1748314535052,0.00013879,108230.0,108220.0,1.67069366]
[1748314536039,0.00013879,108230.0,108220.0,1.67169366]
[1748314536738,0.00113879,108230.0,108220.0,1.67369366]
[1748314537748,0.00113879,108230.0,108220.0,1.67669366]
[1748314541955,0.00113879,108230.0,108220.0,1.556641]
[1748314542155,0.28886269,108230.0,108220.0,0.3103]
[1748314542461,0.10413879,108230.0,108220.0,0.655041]
[1748314542963,0.05213879,108230.0,108220.0,0.655041]
[1748314543261,0.00113879,108230.0,108220.0,0.655161]
[1748314543455,0.33113879,108230.0,108220.0,0.655161]
[1748314543662,0.12113879,108230.0,108220.0,0.61521366]
[1748314543854,0.00113879,108230.0,108220.0,0.99601366]
[1748314544053,0.41697879,108230.0,108220.0,0.99601366]
[1748314544449,0.00113879,108230.0,108220.0,0.99601366]
[1748314544651,0.41697879,108230.0,108220.0,0.99601366]
[1748314544855,0.00113879,108230.0,108220.0,0.99601366]
[1748314545056,0.41697879,108230.0,108220.0,0.99601366]
[1748314547256,0.00113879,108230.0,108220.0,0.99601366]
[1748314547457,0.41697879,108230.0,108220.0,0.99601366]
[1748314547959,0.00113879,108230.0,108220.0,0.99601366]
[1748314548149,0.41697879,108230.0,108220.0,0.99601366]
[1748314548551,0.00113879,108230.0,108220.0,0.97601366]
[1748314548748,0.00113879,108230.0,108220.0,1.31601366]
[1748314548949,0.71165977,108260.0,108250.0,0.30474236]
[1748314549161,1.12749977,108260.0,108250.0,0.43474236]
[1748314549368,1.12749977,108260.0,108250.0,0.59734236]
[1748314549667,1.12749977,108260.0,108250.0,0.4772897]
[1748314550058,1.1119338,108260.0,108250.0,0.4772897]
[1748314550665,1.1139338,108260.0,108250.0,0.4782897]
[1748314551262,1.1159338,108260.0,108250.0,0.4782897]
[1748314552365,1.1159338,108260.0,108250.0,0.4882897]
[1748314553164,1.1159338,108260.0,108250.0,0.4322897]
[1748314553360,1.63832246,108260.0,108250.0,0.131]
[1748314553563,1.88832246,108260.0,108250.0,0.131]
[1748314553754,1.88832246,108260.0,108250.0,0.13112]
[1748314554064,0.0457211,108260.0,108250.0,1.12654246]
[1748314554269,0.0457211,108260.0,108250.0,1.28716246]
[1748314554565,0.0457211,108260.0,108250.0,1.69868246]
[1748314555364,0.2303938,108260.0,108250.0,0.95704246]
[1748314555561,0.1561211,108260.0,108250.0,1.36856246]
[1748314555762,0.1561211,108260.0,108250.0,1.36868246]
[1748314555979,0.1144,108260.0,108250.0,1.36856246]
[1748314556158,0.1144,108260.0,108250.0,0.95716246]
[1748314556464,0.1144,108260.0,108250.0,0.97716246]
[1748314556663,0.004,108260.0,108250.0,1.31716246]
[1748314558066,0.004,108260.0,108250.0,1.67796246]
[1748314560063,0.1886728,108260.0,108250.0,2.08940246]
[1748314560367,0.2952728,108260.0,108250.0,2.08940246]
[1748314560561,0.2952728,108260.0,108250.0,1.50860246]
[1748314561064,0.2952728,108260.0,108250.0,1.50848246]
[1748314561368,0.1106,108260.0,108250.0,1.50860246]
[1748314561562,0.00013879,108270.0,108260.0,0.1846728]
[1748314561768,0.00012,108280.0,108270.0,0.1846557]
[1748314561959,0.00012,108280.0,108270.0,1.73064836]
[1748314562564,0.00012,108280.0,108270.0,1.51064836]
[1748314564271,0.2968586,108280.0,108270.0,0.27]
[1748314564567,1.0258586,108280.0,108270.0,0.13112]
[1748314564968,1.0258586,108280.0,108270.0,0.131]
[1748314565174,1.0258586,108280.0,108270.0,0.13112]
[1748314565375,1.0258586,108280.0,108270.0,0.131]
[1748314565376,1.14591126,108280.0,108270.0,0.131]
[1748314566169,1.14591126,108280.0,108270.0,0.13551182]
[1748314566368,1.33731779,108280.0,108270.0,0.13551182]
[1748314566769,1.21726513,108280.0,108270.0,0.13551182]
[1748314567569,1.15997806,108280.0,108270.0,0.13539182]
[1748314567871,1.15997806,108280.0,108270.0,0.13551182]
[1748314568466,1.53003072,108280.0,108270.0,0.13551182]
[1748314568671,1.58731779,108280.0,108270.0,0.13551182]
[1748314570176,1.69811779,108280.0,108270.0,0.13551182]
[1748314570378,1.94811779,108280.0,108270.0,0.13551182]
[1748314570568,0.1846898,108250.0,108240.0,0.01138559]
[1748314570767,2.17346246,108250.0,108240.0,0.14138559]
[1748314571075,0.2746898,108250.0,108240.0,0.80555956]
[1748314571267,0.2881898,108250.0,108240.0,0.91567956]
[1748314571469,0.2881898,108250.0,108240.0,1.01957956]
[1748314571764,0.2881898,108250.0,108240.0,0.96957956]
[1748314571765,0.2891898,108250.0,108240.0,0.96957956]
[1748314571969,0.7049098,108250.0,108240.0,1.00957956]
[1748314572171,0.7049498,108250.0,108240.0,0.98957956]
[1748314572473,0.6527498,108250.0,108240.0,0.96957956]
[1748314573367,0.6537498,108250.0,108240.0,0.96957956]
[1748314573562,0.6024498,108250.0,108240.0,0.96957956]
[1748314573781,0.1866898,108250.0,108240.0,0.96957956]
[1748314574076,0.6014498,108250.0,108240.0,0.97157956]
[1748314574780,0.6214498,108250.0,108240.0,0.97157956]
[1748314575676,0.36093879,108260.0,108240.0,1.56930932]
[1748314575882,0.00013879,108260.0,108250.0,1.18602246]
[1748314576177,0.00013879,108260.0,108250.0,1.64602246]
[1748314576373,0.00013879,108260.0,108250.0,1.5659698]
[1748314576566,0.00013879,108260.0,108250.0,1.68602246]
[1748314577169,0.00013879,108260.0,108250.0,1.68702246]
[1748314577369,0.00013879,108260.0,108250.0,1.77939846]
[1748314577579,0.00012,108280.0,108270.0,0.1846557]
[1748314577780,0.00012,108280.0,108270.0,1.87298836]
[1748314578379,0.00012,108280.0,108270.0,1.87738018]
[1748314579278,0.00212,108280.0,108270.0,1.87838018]
[1748314579980,0.1887586,108280.0,108270.0,1.28224448]
[1748314580170,0.1887586,108280.0,108270.0,1.75948752]
[1748314580376,0.2971586,108280.0,108270.0,1.75960752]
[1748314580983,0.2971586,108280.0,108270.0,1.81260752]
[1748314581283,0.2971586,108280.0,108270.0,1.45180752]
[1748314582683,0.2971586,108280.0,108270.0,0.90635182]
[1748314582883,0.2971586,108280.0,108270.0,0.62486752]
[1748314583083,0.2971586,108280.0,108270.0,0.87750752]
[1748314583286,0.3531586,108280.0,108270.0,0.84750752]
[1748314583583,0.3531586,108280.0,108270.0,0.84738752]
[1748314583784,0.3531586,108280.0,108270.0,0.84750752]
[1748314584676,0.39499515,108280.0,108270.0,0.79450752]
[1748314585289,0.04595655,108280.0,108270.0,2.11029618]
[1748314585779,0.04595655,108280.0,108270.0,1.92511602]
[1748314586180,0.04595655,108280.0,108270.0,1.72511602]
[1748314586686,0.00412,108280.0,108270.0,1.72511602]
[1748314587785,0.00412,108280.0,108270.0,1.63276002]
[1748314588885,0.00412,108280.0,108270.0,1.21708002]
[1748314589076,0.00412,108280.0,108270.0,1.26858002]
[1748314592079,0.5495586,108280.0,108270.0,0.19043166]
[1748314592275,1.0708986,108280.0,108270.0,0.30098736]
[1748314592583,1.0708986,108280.0,108270.0,0.30086736]
[1748314592779,1.0708986,108280.0,108270.0,0.30098736]
[1748314593178,1.1808986,108280.0,108270.0,0.30098736]
[1748314593389,1.40270174,108280.0,108270.0,0.30098736]
[1748314595987,1.22270174,108280.0,108270.0,0.30098736]
[1748314597190,1.11270174,108280.0,108270.0,0.30098736]
[1748314597490,1.11270174,108280.0,108270.0,0.35728736]
[1748314597683,0.92806314,108280.0,108270.0,0.35728736]
[1748314597991,0.51242314,108280.0,108270.0,0.35728736]
[1748314598186,1.11270174,108280.0,108270.0,0.35728736]
[1748314599189,1.11270174,108280.0,108270.0,0.30098736]
[1748314599383,1.11270174,108280.0,108270.0,0.24948736]
[1748314600492,1.11270174,108280.0,108270.0,0.30498736]
[1748314601093,0.75190174,108280.0,108270.0,0.30498736]
[1748314601292,1.11270174,108280.0,108270.0,0.30498736]
[1748314601998,0.69706174,108280.0,108270.0,0.30498736]
[1748314602295,0.75190174,108280.0,108270.0,0.35688736]
[1748314603489,0.56726314,108280.0,108270.0,0.83774002]
[1748314603695,0.56726314,108280.0,108270.0,0.67694002]
[1748314603999,0.24334653,108300.0,108290.0,0.1846216]
[1748314604181,0.2066,108300.0,108290.0,1.05547426]
[1748314604387,0.2066,108300.0,108290.0,0.95997426]
[1748314604584,0.2066,108300.0,108290.0,0.8399216]
[1748314605187,0.2116,108300.0,108290.0,0.8399216]
[1748314605497,0.2116,108300.0,108290.0,0.95997426]
[1748314606091,0.2166,108300.0,108290.0,0.60017426]
[1748314606293,0.230276,108300.0,108290.0,0.8409216]
[1748314606798,0.2166,108300.0,108290.0,0.8410416]
[1748314610699,0.2166,108300.0,108290.0,0.84543342]
[1748314613998,0.7620045,108300.0,108290.0,0.13551182]
[1748314614190,0.4637045,108300.0,108290.0,0.31013342]
[1748314614396,0.8245045,108300.0,108290.0,0.31001342]
[1748314615394,0.11,108300.0,108290.0,0.80086608]
[1748314615600,0.11,108300.0,108290.0,0.91646608]
[1748314616101,0.11012,108300.0,108290.0,0.91646608]
[1748314617500,1.43649482,108330.0,108320.0,0.1845704]
[1748314617706,1.91029482,108330.0,108320.0,0.14222384]
[1748314617903,1.91029482,108330.0,108320.0,0.32679424]
[1748314618102,1.91041482,108330.0,108320.0,0.32679424]
[1748314618302,1.91037482,108330.0,108320.0,0.32679424]
[1748314618502,1.90858326,108330.0,108320.0,0.32679424]
[1748314618692,1.91058326,108330.0,108320.0,0.32679424]
[1748314619004,1.08670326,108330.0,108320.0,0.32779424]
[1748314619192,1.91358326,108330.0,108320.0,0.32779424]
[1748314621105,1.08670326,108330.0,108320.0,0.32779424]
[1748314621306,1.91354326,108330.0,108320.0,0.32779424]
[1748314621502,2.03359592,108330.0,108320.0,0.14322384]
[1748314622206,1.91354326,108330.0,108320.0,0.14322384]
[1748314625912,1.91354326,108330.0,108320.0,0.14761566]
[1748314626408,0.1845705,108320.0,108310.0,0.27700519]
[1748314626610,0.9420705,108320.0,108310.0,0.34700519]
[1748314627000,1.7688705,108320.0,108310.0,0.34700519]
[1748314627196,0.9420705,108320.0,108310.0,0.34700519]
[1748314627411,1.7688705,108320.0,108310.0,0.25471259]
[1748314627606,0.9420705,108320.0,108310.0,0.25471259]
[1748314627811,1.7688705,108320.0,108310.0,0.25571259]
[1748314628002,1.81036674,108320.0,108310.0,0.25571259]
[1748314628318,0.98356674,108320.0,108310.0,0.25671259]
[1748314628515,1.81036674,108320.0,108310.0,0.25671259]
[1748314629012,1.81036674,108320.0,108310.0,0.31001259]
[1748314629613,1.81036674,108320.0,108310.0,0.12543879]
[1748314629818,1.81036674,108320.0,108310.0,0.06213879]
[1748314631019,0.04149624,108320.0,108310.0,0.72664684]
[1748314631224,0.04149624,108320.0,108310.0,1.13484684]
[1748314631823,0.04161624,108320.0,108310.0,1.13484684]
[1748314632025,0.04261624,108320.0,108310.0,1.13684684]
[1748314632830,0.00112,108320.0,108310.0,1.13684684]
[1748314633025,0.00112,108320.0,108310.0,1.13984684]
[1748314633221,0.2419908,108320.0,108310.0,1.13984684]
[1748314633533,0.2419908,108320.0,108310.0,1.14084684]
[1748314634025,0.2419908,108320.0,108310.0,0.84913879]
[1748314634223,0.6582908,108320.0,108310.0,0.23215904]
[1748314634423,0.6582908,108320.0,108310.0,0.12303879]
[1748314634834,1.10741105,108320.0,108310.0,0.07013879]
[1748314635828,1.14895817,108320.0,108310.0,0.07013879]
[1748314637935,1.15921018,108320.0,108310.0,0.07013879]
[1748314638528,1.03983792,108320.0,108310.0,0.07013879]
[1748314639934,0.67903792,108320.0,108310.0,0.07013879]
[1748314640134,1.03983792,108320.0,108310.0,0.07453061]
[1748314641530,1.15921018,108320.0,108310.0,0.07453061]
[1748314643238,1.30255671,108320.0,108310.0,0.07453061]
[1748314643436,1.39488071,108320.0,108310.0,0.07453061]
[1748314643936,1.64488071,108320.0,108310.0,0.04001261]
[1748314644631,1.64488071,108320.0,108310.0,1e-08]
[1748314644832,0.1845879,108310.0,108300.0,0.00025879]
[1748314645137,2.1350746,108310.0,108300.0,0.01925872]
[1748314645436,2.2274066,108310.0,108300.0,0.01925872]
[1748314646233,2.2294066,108310.0,108300.0,0.03125872]
[1748314646538,2.41467809,108310.0,108300.0,0.03125872]
[1748314647037,2.41467809,108310.0,108300.0,0.02825872]
[1748314647335,2.41367809,108310.0,108300.0,0.02525872]
[1748314647637,2.32134609,108310.0,108300.0,0.02525872]
[1748314647936,2.41367809,108310.0,108300.0,0.02525872]
[1748314648932,0.184639,108280.0,108270.0,0.02]
[1748314649134,0.184639,108280.0,108260.0,0.34415736]
[1748314649135,0.184656,108270.0,108260.0,0.34415736]
[1748314649434,0.32452664,108270.0,108260.0,0.46415736]
[1748314649635,0.29526792,108270.0,108260.0,0.27948536]
[1748314649938,1.01606792,108270.0,108260.0,0.22790536]
[1748314650240,1.13644018,108270.0,108260.0,0.18060536]
[1748314650537,1.13644018,108270.0,108260.0,0.18048536]
[1748314650733,1.01606792,108270.0,108260.0,0.17460536]
[1748314651036,0.46871192,108270.0,108260.0,0.61415072]
[1748314651238,0.60336802,108270.0,108260.0,0.61415072]
[1748314651636,0.60336802,108270.0,108260.0,0.59415072]
[1748314652632,0.60336802,108270.0,108260.0,0.95495072]
[1748314653232,0.60340802,108270.0,108260.0,0.95495072]
[1748314654542,0.60340802,108270.0,108260.0,0.95934254]
[1748314655639,0.18776802,108270.0,108260.0,0.80746055]
[1748314655940,0.62340802,108270.0,108260.0,0.80746055]
[1748314656941,0.60340802,108270.0,108260.0,0.80746055]
[1748314658442,0.18776802,108270.0,108260.0,0.80746055]
[1748314658641,0.60340802,108270.0,108260.0,0.80746055]
[1748314658935,0.60340802,108270.0,108260.0,0.86016055]
[1748314659142,0.41875192,108270.0,108260.0,0.86016055]
[1748314659341,0.60340662,108270.0,108260.0,0.86016055]
[1748314659543,0.18776662,108270.0,108260.0,0.86016055]
[1748314659732,0.60340662,108270.0,108260.0,0.86016055]
[1748314659936,0.41875192,108270.0,108260.0,0.8499714]
[1748314660138,0.60340662,108270.0,108260.0,0.8499714]
[1748314660842,0.00311192,108270.0,108260.0,0.9899714]
[1748314661635,0.18776662,108270.0,108260.0,0.9899714]
[1748314661839,0.00311192,108270.0,108260.0,1.2199714]
[1748314666846,0.18776842,108270.0,108260.0,1.2199714]
[1748314667250,0.00311192,108270.0,108260.0,1.2199714]
[1748314667838,0.00311192,108270.0,108260.0,1.6313714]
[1748314668840,0.05748975,108300.0,108270.0,0.0461617]
[1748314669134,0.05748975,108300.0,108290.0,1.01540551]
[1748314669343,0.05748975,108300.0,108290.0,1.47540551]
[1748314669547,0.00012,108300.0,108290.0,1.58220551]
[1748314670547,0.00012,108300.0,108290.0,1.58420551]
[1748314671938,0.00012,108300.0,108290.0,1.64080551]
[1748314672638,0.00112,108300.0,108290.0,1.64080551]
[1748314673148,0.00012,108300.0,108290.0,1.64080551]
[1748314673349,0.00112,108300.0,108290.0,1.64280551]
[1748314676550,0.2403253,108300.0,108290.0,1.5336224]
[1748314676846,0.2988253,108300.0,108290.0,1.5336224]
[1748314677149,0.2988253,108300.0,108290.0,1.64280551]
[1748314677943,0.11533192,108300.0,108290.0,1.64280551]
[1748314678441,0.17263192,108300.0,108290.0,1.64280551]
[1748314678750,0.17263192,108300.0,108290.0,1.45818311]
[1748314679144,0.17263192,108300.0,108290.0,1.64280551]
[1748314680152,0.11533192,108300.0,108290.0,2.05388551]
[1748314680339,0.11521192,108300.0,108290.0,2.05388551]
[1748314680744,0.11533192,108300.0,108290.0,2.05388551]
[1748314682255,1e-08,108310.0,108300.0,0.1846053]
[1748314682546,1e-08,108310.0,108300.0,1.44810352]
[1748314682738,1e-08,108310.0,108300.0,1.44822352]
[1748314683346,0.00012001,108310.0,108300.0,1.44822352]
[1748314684352,0.00112001,108310.0,108300.0,1.44922352]
[1748314684553,0.00112001,108310.0,108300.0,1.46589804]
[1748314685253,0.00112001,108310.0,108300.0,1.46889804]
[1748314686053,0.00112001,108310.0,108300.0,1.47328986]
[1748314687945,0.05692001,108310.0,108300.0,1.47328986]
[1748314688752,0.24150831,108310.0,108300.0,1.16259164]
[1748314688954,0.05692001,108310.0,108300.0,1.27177475]
[1748314689151,0.17042001,108310.0,108300.0,1.27177475]
[1748314689351,0.17042001,108310.0,108300.0,1.25810023]
[1748314689549,0.17042001,108310.0,108300.0,1.20350023]
[1748314689854,0.36500831,108310.0,108300.0,0.92610023]
[1748314690056,0.44500831,108310.0,108300.0,0.80610023]
[1748314690256,0.61500831,108310.0,108300.0,0.80610023]
[1748314691553,0.35500831,108310.0,108300.0,0.80610023]
[1748314692465,0.35500831,108310.0,108300.0,0.80588243]
[1748314693663,0.35500831,108310.0,108300.0,0.86408243]
[1748314693664,0.77048831,108310.0,108300.0,0.86408243]
[1748314695774,0.58590001,108310.0,108300.0,0.86408243]
[1748314696668,0.17042001,108310.0,108300.0,0.86408243]
[1748314696863,0.77048831,108310.0,108300.0,0.86408243]
[1748314697268,0.58590001,108310.0,108300.0,0.86408243]
[1748314697961,1e-08,108310.0,108300.0,1.31326554]
[1748314698160,0.5725379,108340.0,108330.0,0.1845542]
[1748314698361,0.82176308,108340.0,108330.0,0.13222384]
[1748314698667,1.60280308,108340.0,108330.0,0.31677804]
[1748314699369,1.36824993,108340.0,108330.0,0.42596115]
[1748314700167,1.3756065,108340.0,108330.0,0.42596115]
[1748314700467,1.3766065,108340.0,108330.0,0.42596115]
[1748314700963,0.5500865,108340.0,108330.0,0.42596115]
[1748314701169,1.3775665,108340.0,108330.0,0.43035297]
[1748314702859,1.3775665,108340.0,108330.0,0.13661566]
[1748314703064,1.84754961,108340.0,108330.0,0.13661566]
[1748314703670,1.84754961,108340.0,108330.0,0.32116986]
[1748314703971,1.84754961,108340.0,108330.0,0.13661566]
[1748314704362,1.84754961,108340.0,108330.0,0.32116986]
[1748314704768,1.7383665,108340.0,108330.0,0.32116986]
[1748314705268,1.7383665,108340.0,108330.0,0.13661566]
[1748314707877,1.3775665,108340.0,108330.0,0.13661566]
[1748314708077,1.7383665,108340.0,108330.0,0.13661566]
[1748314710679,1.84754961,108340.0,108330.0,0.13661566]
[1748314711069,1.90509475,108340.0,108330.0,0.13661566]
[1748314712784,0.49563164,108340.0,108330.0,0.43035287]
[1748314713083,0.89877833,108340.0,108330.0,0.13661566]
[1748314713275,1.67876144,108340.0,108330.0,0.13661566]
[1748314713874,2.03491983,108340.0,108330.0,0.13661566]
[1748314714489,1.97737469,108340.0,108330.0,0.13661566]
[1748314715387,1.97737469,108340.0,108330.0,0.00661566]
[1748314716387,3.02437469,108340.0,108330.0,0.00661566]
[1748314718085,3.02437469,108340.0,108330.0,0.01661566]
[1748314718983,0.1845712,108320.0,108310.0,0.0922936]
[1748314719287,1.43003431,108320.0,108310.0,0.4068736]
[1748314719489,1.54423431,108320.0,108310.0,0.4068736]
[1748314719989,1.58579578,108320.0,108310.0,0.4068736]
[1748314720182,1.58679578,108320.0,108310.0,0.4098736]
[1748314720383,1.58679578,108320.0,108310.0,0.3637268]
[1748314720581,1.58679578,108320.0,108310.0,0.4189268]
[1748314721288,1.58679578,108320.0,108310.0,0.4209268]
[1748314724192,1.58679578,108320.0,108310.0,0.37478]
[1748314726888,1.94759578,108320.0,108310.0,0.37478]
[1748314727383,1.94759578,108320.0,108310.0,0.1902]
[1748314727586,2.03991978,108320.0,108310.0,0.135]
[1748314727791,0.07256147,108320.0,108310.0,0.42877141]
[1748314727992,0.07256147,108320.0,108310.0,0.95537141]
[1748314728199,0.10016342,108320.0,108310.0,1.60617141]
[1748314728496,0.50185341,108330.0,108320.0,0.1845712]
[1748314728797,0.68640761,108330.0,108320.0,0.98245431]
[1748314728999,0.68640761,108330.0,108320.0,0.8732712]
[1748314729299,0.68652761,108330.0,108320.0,0.8732712]
[1748314729689,0.60129299,108330.0,108320.0,0.98445431]
[1748314730098,0.18581299,108330.0,108320.0,0.98445431]
[1748314730296,0.60133299,108330.0,108320.0,0.98445431]
[1748314731795,0.41673879,108330.0,108320.0,1.04145431]
[1748314732006,0.60117299,108330.0,108320.0,1.04145431]
[1748314732296,0.18581299,108330.0,108320.0,0.7477]
[1748314732495,0.98209299,108330.0,108320.0,0.2469]
[1748314732800,1.15889299,108330.0,108320.0,0.2469]
[1748314732999,1.15889299,108330.0,108320.0,0.4314712]
[1748314733602,1.15889299,108330.0,108320.0,0.2469]
[1748314733797,1.15889299,108330.0,108320.0,0.4314712]
[1748314734103,1.15889299,108330.0,108320.0,0.2469]
[1748314734889,1.15889299,108330.0,108320.0,0.4314712]
[1748314735096,1.2680761,108330.0,108320.0,0.4314712]
[1748314736002,1.2680761,108330.0,108320.0,0.26493786]
[1748314736198,1.15889299,108330.0,108320.0,0.26493786]
[1748314736404,1.45889299,108330.0,108320.0,0.26493786]
[1748314736604,1.5680761,108330.0,108320.0,0.08036666]
[1748314738607,1.5680761,108330.0,108320.0,0.26493786]
[1748314739307,1.2072761,108330.0,108320.0,0.08036666]
[1748314739603,1.5680761,108330.0,108320.0,0.08036666]
[1748314741513,1.6086013,108330.0,108320.0,0.08036666]
[1748314742406,1.6086013,108330.0,108320.0,0.13576666]
[1748314742912,1.6086013,108330.0,108320.0,0.08036666]
[1748314743612,1.1931213,108330.0,108320.0,0.26493786]
[1748314743814,1.6086013,108330.0,108320.0,0.31773786]
[1748314744013,1.08393819,108330.0,108320.0,0.37293786]
[1748314744214,1.49941819,108330.0,108320.0,0.37293786]
[1748314744510,1.49929819,108330.0,108320.0,0.37293786]
[1748314744912,1.49941819,108330.0,108320.0,0.37293786]
[1748314745213,1.90997819,108330.0,108320.0,0.37293786]
[1748314745913,1.90997819,108330.0,108320.0,0.37732968]
[1748314746614,1.08393819,108330.0,108320.0,0.37732968]
[1748314747115,1.90997819,108330.0,108320.0,0.32212968]
[1748314748013,1.90997819,108330.0,108320.0,0.26932968]
[1748314748317,1.08393819,108330.0,108320.0,0.26932968]
[1748314748815,1.54917819,108330.0,108320.0,0.26932968]
[1748314749016,1.90997819,108330.0,108320.0,0.26932968]
[1748314750418,2.0191613,108330.0,108320.0,0.26932968]
[1748314750716,1.1931213,108330.0,108320.0,0.02775848]
[1748314751017,2.12834441,108330.0,108320.0,0.02775848]
[1748314751410,2.0191613,108330.0,108320.0,0.02775848]
[1748314751816,2.12834441,108330.0,108320.0,0.02775848]
[1748314752212,2.21457903,108330.0,108320.0,0.02775848]
[1748314752414,2.10539592,108330.0,108320.0,0.02775848]
[1748314754609,2.21457903,108330.0,108320.0,0.02775848]
[1748314755518,2.10539592,108330.0,108320.0,0.02775848]
[1748314755915,2.21457903,108330.0,108320.0,0.02775848]
[1748314757618,1.85377903,108330.0,108320.0,0.02775848]
[1748314757822,2.57537903,108330.0,108320.0,0.02775848]
[1748314758624,2.46619592,108330.0,108320.0,0.02775848]
[1748314759109,2.57537903,108330.0,108320.0,0.02775848]
[1748314759823,2.15989903,108330.0,108320.0,0.02775848]
[1748314760123,2.63287974,108330.0,108320.0,0.02775848]
[1748314760522,2.52369663,108330.0,108320.0,0.02775848]
[1748314760824,2.10817663,108330.0,108320.0,0.02775848]
[1748314761023,2.52369663,108330.0,108320.0,0.02775848]
[1748314761224,2.52369663,108330.0,108320.0,0.08105848]
[1748314762223,2.52369663,108330.0,108320.0,0.02775848]
[1748314763524,2.63287974,108330.0,108320.0,0.02775848]
[1748314763725,2.63287974,108330.0,108320.0,0.08275848]
[1748314764618,2.63287974,108330.0,108320.0,0.02775848]
[1748314765019,0.1845712,108320.0,108310.0,0.00012]
[1748314765232,1.07665431,108320.0,108310.0,0.11012]
[1748314766218,1.07765431,108320.0,108310.0,0.11312]
[1748314766719,1.07765431,108320.0,108310.0,0.11512]
[1748314767118,1.07765431,108320.0,108310.0,0.11312]
[1748314767319,1.07765431,108320.0,108310.0,0.11112]
[1748314767512,1.07865431,108320.0,108310.0,0.11112]
[1748314769426,1.07765431,108320.0,108310.0,0.11012]
[1748314769717,1.07865431,108320.0,108310.0,0.11112]
[1748314769923,1.20541413,108320.0,108310.0,0.11112]
[1748314770623,1.26175102,108320.0,108310.0,0.40489141]
[1748314770824,1.26175102,108320.0,108310.0,0.57349141]
[1748314771017,0.31333102,108320.0,108310.0,0.59349141]
[1748314771214,0.6427764,108320.0,108310.0,0.59349141]